bitfinex/quotes_BTCUSD_20241025
["timestamp","ask_amount","ask_price","bid_price","bid_amount"]
[1729880080540,0.22679337,66876.0,66875.0,0.00963011]
[1729880080784,0.22679337,66876.0,66875.0,0.29115211]
[1729880081004,0.22679337,66891.0,66876.0,0.29115011]
[1729880081252,0.22679337,66891.0,66876.0,0.37205011]
[1729880081482,0.22679337,66890.0,66884.0,0.25914211]
[1729880081766,0.22679337,66890.0,66884.0,0.25414211]
[1729880082026,0.005,66892.0,66884.0,0.249512]
[1729880082251,0.005,66889.0,66884.0,0.1]
[1729880082474,0.005,66890.0,66884.0,0.249512]
[1729880082729,0.005,66890.0,66882.0,0.00463011]
[1729880082730,0.005,66887.0,66882.0,0.1]
[1729880082953,0.005,66886.0,66884.0,0.1]
[1729880083172,5.217e-05,66893.0,66884.0,0.249512]
[1729880084093,5.217e-05,66893.0,66876.0,0.299058]
[1729880084094,0.24851634,66909.0,66894.0,0.1]
[1729880084343,0.24851634,66909.0,66890.0,0.01]
[1729880084344,0.22679337,66916.0,66913.0,0.149446]
[1729880084578,0.22679337,66923.0,66917.0,0.005]
[1729880084801,0.22679337,66930.0,66920.0,0.005]
[1729880085041,0.22679337,66930.0,66917.0,0.005]
[1729880085042,5.215e-05,66935.0,66922.0,0.005]
[1729880085280,0.22679337,66942.0,66917.0,0.005]
[1729880085281,0.25330305,66942.0,66928.0,0.005]
[1729880085565,0.001694,66952.0,66931.0,0.1]
[1729880085816,0.15050381,66939.0,66935.0,0.005]
[1729880086055,0.15050381,66939.0,66938.0,0.005]
[1729880086275,0.001694,66952.0,66942.0,0.005]
[1729880086496,0.001694,66952.0,66920.0,0.005]
[1729880086497,0.22679337,66945.0,66920.0,0.005]
[1729880086728,0.001694,66952.0,66938.0,0.22679337]
[1729880086995,0.001694,66952.0,66932.0,0.1]
[1729880086996,0.22679337,66947.0,66932.0,0.1]
[1729880087275,0.059778,66951.0,66938.0,0.22679337]
[1729880087491,0.001694,66952.0,66948.0,0.22679337]
[1729880087713,0.001694,66952.0,66945.0,0.149375]
[1729880087967,0.001694,66952.0,66942.0,0.1]
[1729880087968,0.15050381,66951.0,66946.0,0.249373]
[1729880088193,0.15050381,66951.0,66930.0,0.298815]
[1729880088194,0.001694,66952.0,66951.0,0.1]
[1729880088430,0.001694,66952.0,66934.0,0.005]
[1729880088663,0.001694,66952.0,66942.0,0.1]
[1729880088664,0.15050381,66949.0,66942.0,0.1]
[1729880089122,0.15050381,66949.0,66944.0,0.1]
[1729880089373,0.001694,66952.0,66951.0,0.105]
[1729880089741,0.15219781,66952.0,66951.0,0.105]
[1729880089866,0.15219781,66952.0,66951.0,0.1]
[1729880090319,0.15219781,66952.0,66951.0,0.005]
[1729880090546,0.15219781,66952.0,66948.0,0.005]
[1729880090788,0.001694,66952.0,66951.0,0.11]
[1729880091006,0.15219781,66952.0,66951.0,0.105]
[1729880091234,0.15219781,66952.0,66951.0,0.11]
[1729880091235,0.001694,66952.0,66951.0,0.11]
[1729880091732,0.15219781,66952.0,66951.0,0.1]
[1729880091962,0.15219781,66952.0,66946.0,0.1]
[1729880092245,0.15219781,66952.0,66938.0,0.22679337]
[1729880092246,0.15050381,66947.0,66931.0,0.23179337]
[1729880092471,0.001694,66952.0,66946.0,0.22679337]
[1729880092472,0.023,66951.0,66946.0,0.22679337]
[1729880092691,0.023,66951.0,66939.0,0.37618237]
[1729880092692,0.001694,66952.0,66942.0,0.005]
[1729880092914,0.001694,66952.0,66946.0,0.52553937]
[1729880093147,0.001694,66952.0,66951.0,0.149362]
[1729880093394,0.001694,66952.0,66947.0,0.005]
[1729880093395,0.001694,66952.0,66950.0,0.005]
[1729880093855,0.001694,66952.0,66933.0,0.298804]
[1729880093856,0.15050381,66951.0,66946.0,0.005]
[1729880094118,0.15050381,66951.0,66942.0,0.1]
[1729880094338,0.01521978,66950.0,66942.0,0.1]
[1729880094569,0.023,66942.0,66928.0,0.005]
[1729880094798,0.01521978,66950.0,66926.0,0.005]
[1729880094799,0.023,66949.0,66926.0,0.005]
[1729880095037,0.023,66949.0,66928.0,0.005]
[1729880095272,0.023,66949.0,66910.0,0.23179337]
[1729880095273,0.023,66949.0,66920.0,0.005]
[1729880095504,0.023,66949.0,66916.0,0.005]
[1729880095725,0.023,66949.0,66922.0,0.005]
[1729880096680,0.023,66949.0,66920.0,0.005]
[1729880096920,0.023,66949.0,66934.0,0.001634]
[1729880098337,0.0102094,66949.0,66938.0,0.1]
[1729880098565,0.001694,66952.0,66938.0,0.11]
[1729880098825,0.001694,66952.0,66940.0,0.005]
[1729880099058,0.001694,66952.0,66937.0,0.22679337]
[1729880099059,0.001694,66952.0,66948.0,0.1]
[1729880099292,0.001694,66952.0,66950.0,0.1]
[1729880099510,0.001694,66952.0,66948.0,0.005]
[1729880099511,0.15050381,66951.0,66948.0,0.003]
[1729880099741,0.15050381,66951.0,66950.0,0.005]
[1729880100455,0.15050381,66951.0,66949.0,0.1]
[1729880100931,0.15050381,66951.0,66941.0,0.005]
[1729880101158,0.15050381,66951.0,66946.0,0.1]
[1729880101417,0.15050381,66947.0,66939.0,0.1]
[1729880101660,0.023,66946.0,66941.0,0.22679337]
[1729880101901,0.001694,66952.0,66951.0,0.154362]
[1729880102132,0.001694,66952.0,66951.0,0.008]
[1729880102365,0.001694,66952.0,66951.0,0.005]
[1729880102594,0.001694,66952.0,66948.0,0.005]
[1729880103306,0.001694,66952.0,66951.0,0.008]
[1729880103547,0.001694,66952.0,66948.0,0.005]
[1729880103798,0.001694,66952.0,66944.0,0.005]
[1729880103799,0.001694,66952.0,66951.0,0.48915537]
[1729880104026,0.001694,66952.0,66951.0,0.108]
[1729880104258,0.15219781,66952.0,66951.0,0.105]
[1729880104481,0.001694,66952.0,66951.0,0.262362]
[1729880104731,0.001694,66952.0,66951.0,0.113]
[1729880104950,0.15219781,66952.0,66951.0,0.005]
[1729880105302,0.001694,66952.0,66951.0,0.008]
[1729880105398,0.001694,66952.0,66951.0,0.006]
[1729880106051,0.001694,66952.0,66951.0,0.003]
[1729880106263,0.15219781,66952.0,66951.0,0.003]
[1729880106500,0.15219781,66952.0,66944.0,0.1]
[1729880106501,0.16741759,66952.0,66944.0,0.1]
[1729880106713,0.16741759,66952.0,66939.0,0.22679337]
[1729880106714,0.023,66944.0,66939.0,0.22679337]
[1729880106951,0.01691378,66952.0,66939.0,0.22679337]
[1729880106952,0.001694,66952.0,66948.0,0.003]
[1729880107191,0.001694,66952.0,66951.0,0.006]
[1729880107415,0.001694,66952.0,66951.0,0.003]
[1729880107631,0.001694,66952.0,66945.0,0.003]
[1729880107632,0.001694,66952.0,66946.0,0.003]
[1729880107867,0.001694,66952.0,66951.0,0.006]
[1729880108094,0.15219781,66952.0,66951.0,0.003]
[1729880108553,0.15219781,66952.0,66947.0,0.003]
[1729880108772,0.001694,66952.0,66951.0,0.006]
[1729880108992,0.15219781,66952.0,66951.0,0.006]
[1729880109281,0.15219781,66952.0,66947.0,0.003]
[1729880109496,0.001694,66952.0,66951.0,0.22679337]
[1729880109707,0.15219781,66952.0,66951.0,0.103]
[1729880109973,0.16741759,66952.0,66939.0,0.001634]
[1729880110204,0.15050381,66951.0,66940.0,0.22679337]
[1729880110427,0.15050381,66946.0,66939.0,0.001634]
[1729880110647,0.15050381,66942.0,66941.0,0.22679337]
[1729880110870,0.023,66941.0,66939.0,0.001634]
[1729880111102,0.17350381,66940.0,66934.0,0.001634]
[1729880111343,0.15050381,66935.0,66915.0,0.003]
[1729880111571,0.002,66948.0,66929.0,0.003]
[1729880111920,0.002,66948.0,66927.0,0.003]
[1729880111921,0.22679337,66944.0,66927.0,0.003]
[1729880112006,0.002,66943.0,66923.0,0.003]
[1729880112223,0.01371422,66942.0,66923.0,0.003]
[1729880112458,0.03565613,66941.0,66923.0,0.003]
[1729880112678,0.01371422,66940.0,66923.0,0.003]
[1729880112894,0.023,66938.0,66923.0,0.003]
[1729880113162,0.023,66938.0,66920.0,0.003]
[1729880113163,0.15050381,66928.0,66926.0,0.22679337]
[1729880113371,0.01371422,66927.0,66926.0,0.22679337]
[1729880113609,0.16421803,66927.0,66919.0,0.22679337]
[1729880113846,0.22679337,66945.0,66919.0,0.22679337]
[1729880113847,0.023,66925.0,66919.0,0.22679337]
[1729880114083,0.023,66923.0,66919.0,0.22679337]
[1729880114347,0.17574557,66920.0,66905.0,0.003]
[1729880114569,0.01371422,66919.0,66912.0,0.22679337]
[1729880114781,0.02524176,66920.0,66914.0,0.003]
[1729880114782,0.08133423,66918.0,66914.0,0.003]
[1729880114999,0.00224176,66920.0,66913.0,0.003]
[1729880115000,0.03567708,66917.0,66913.0,0.003]
[1729880115232,0.00224176,66920.0,66900.0,0.003]
[1729880115233,0.023,66914.0,66900.0,0.003]
[1729880115458,0.30812326,66916.0,66904.0,0.22679337]
[1729880115459,0.023,66910.0,66904.0,0.22679337]
[1729880115687,0.023,66904.0,66898.0,0.22679337]
[1729880115916,0.17350381,66899.0,66898.0,0.22679337]
[1729880116134,0.05936703,66899.0,66885.0,0.003]
[1729880116364,0.08236703,66898.0,66887.0,0.003]
[1729880116587,0.023,66896.0,66887.0,0.003]
[1729880116823,0.20987084,66895.0,66886.0,0.003]
[1729880117267,0.01371422,66894.0,66887.0,0.003]
[1729880117270,0.01371422,66894.0,66886.0,0.003]
[1729880117499,0.01371422,66894.0,66877.0,0.149527]
[1729880117500,0.023,66892.0,66878.0,0.005]
[1729880117739,0.023,66890.0,66879.0,0.22679337]
[1729880117965,0.023,66888.0,66875.0,0.006]
[1729880118203,0.023,66882.0,66878.0,0.22679337]
[1729880118493,0.03671422,66882.0,66871.0,0.22679337]
[1729880118733,0.03671422,66882.0,66872.0,0.22763937]
[1729880119169,0.023,66880.0,66872.0,0.000846]
[1729880119391,0.15050381,66879.0,66872.0,0.000846]
[1729880119644,0.24050759,66878.0,66872.0,0.000846]
[1729880119881,0.023,66876.0,66872.0,0.000846]
[1729880120138,0.023,66872.0,66856.0,0.22679337]
[1729880120400,0.15050381,66859.0,66848.0,0.22679337]
[1729880120624,0.03671422,66858.0,66857.0,0.22679337]
[1729880120855,0.01371422,66858.0,66857.0,0.157572]
[1729880121119,0.01371422,66858.0,66857.0,0.19081007]
[1729880121375,0.22679337,66866.0,66864.0,0.003]
[1729880121606,0.3910114,66865.0,66864.0,0.003]
[1729880121847,0.16421803,66865.0,66864.0,0.003]
[1729880122086,0.023,66864.0,66853.0,0.003]
[1729880122336,0.023,66864.0,66848.0,0.003]
[1729880122337,0.15050381,66861.0,66848.0,0.003]
[1729880122568,0.03671422,66860.0,66848.0,0.003]
[1729880122793,0.15050381,66856.0,66843.0,0.003]
[1729880123029,0.15050381,66854.0,66839.0,0.003]
[1729880123278,0.002,66861.0,66822.0,0.492501]
[1729880123279,0.18721803,66853.0,66834.0,0.003]
[1729880123507,0.20633983,66853.0,66836.0,0.003]
[1729880123736,0.20633983,66853.0,66832.0,0.006]
[1729880123980,0.023,66843.0,66832.0,0.006]
[1729880124218,0.023,66843.0,66824.0,0.149645]
[1729880124219,0.023,66839.0,66830.0,0.22679337]
[1729880124458,0.03671422,66839.0,66826.0,0.003]
[1729880124699,0.023,66837.0,66822.0,0.003]
[1729880125060,0.03653252,66837.0,66820.0,0.000846]
[1729880125150,0.17350381,66829.0,66820.0,0.000846]
[1729880125390,0.17350381,66827.0,66820.0,0.000846]
[1729880125632,0.01353252,66826.0,66820.0,0.000846]
[1729880125883,0.17350381,66821.0,66820.0,0.000846]
[1729880126132,0.18703633,66821.0,66820.0,0.000846]
[1729880126402,0.023,66820.0,66807.0,0.0086286]
[1729880126618,0.023,66812.0,66807.0,0.0086286]
[1729880126882,0.15050381,66808.0,66795.0,0.22679337]
[1729880127137,0.023,66802.0,66794.0,0.22679337]
[1729880127374,0.15050381,66801.0,66795.0,0.22679337]
[1729880127617,0.023,66817.0,66806.0,0.149686]
[1729880127857,0.22679337,66811.0,66800.0,0.299398]
[1729880128080,0.15050381,66810.0,66792.0,0.299435]
[1729880128298,0.06072972,66809.0,66787.0,0.22679337]
[1729880128527,0.22679337,66818.0,66794.0,0.22679337]
[1729880128771,0.22679337,66818.0,66790.0,0.299443]
[1729880128772,0.22679337,66801.0,66790.0,0.299443]
[1729880129024,0.15050381,66817.0,66793.0,0.002]
[1729880129258,0.15050381,66817.0,66781.0,0.002]
[1729880129259,0.22679337,66801.0,66781.0,0.002]
[1729880129513,0.22679337,66811.0,66785.0,0.005]
[1729880129749,0.22679337,66802.0,66787.0,0.03237377]
[1729880129995,0.22679337,66802.0,66781.0,0.005]
[1729880129996,0.15550381,66801.0,66800.0,0.1]
[1729880130205,0.15550381,66801.0,66776.0,0.2002]
[1729880130206,0.005,66798.0,66779.0,0.301495]
[1729880130441,0.15050381,66797.0,66783.0,0.22679337]
[1729880130652,0.15050381,66797.0,66794.0,0.149713]
[1729880130653,0.23161359,66795.0,66794.0,0.149713]
[1729880130896,0.00482022,66792.0,66776.0,0.1982]
[1729880131110,0.00482022,66794.0,66791.0,0.14972]
[1729880131354,0.00482022,66795.0,66794.0,0.149714]
[1729880131636,0.22679337,66811.0,66810.0,0.149678]
[1729880131852,0.22679337,66811.0,66810.0,0.38716159]
[1729880132078,0.22679337,66811.0,66810.0,0.38916159]
[1729880132306,0.22679337,66838.0,66810.0,0.38916159]
[1729880132307,0.00482022,66835.0,66827.0,0.25164]
[1729880132517,0.22679337,66838.0,66827.0,0.25164]
[1729880132518,0.00482022,66834.0,66827.0,0.24964]
[1729880132746,0.22679337,66838.0,66823.0,0.002]
[1729880132747,0.22679337,66838.0,66837.0,0.249617]
[1729880133004,0.23161359,66838.0,66837.0,0.249617]
[1729880133244,0.22679337,66838.0,66837.0,0.249617]
[1729880133468,0.00482022,66848.0,66847.0,0.149595]
[1729880133683,0.00482022,66848.0,66839.0,0.1]
[1729880133684,0.00482022,66840.0,66839.0,0.1]
[1729880133905,0.00482022,66840.0,66839.0,0.249613]
[1729880134119,0.15532403,66840.0,66835.0,0.149621]
[1729880134334,0.15532403,66840.0,66834.0,0.299245]
[1729880134335,0.00482022,66833.0,66832.0,0.249626]
[1729880134552,0.15532403,66833.0,66822.0,0.299299]
[1729880134797,0.00482022,66825.0,66824.0,0.249646]
[1729880135337,0.00482022,66825.0,66824.0,0.1]
[1729880135563,0.15532403,66825.0,66824.0,0.1]
[1729880135819,0.15532403,66825.0,66810.0,0.0768]
[1729880135820,0.00482022,66810.0,66809.0,0.14968]
[1729880136477,0.00482022,66810.0,66802.0,0.52618237]
[1729880136478,0.00482022,66813.0,66802.0,0.22679337]
[1729880136695,0.15050381,66824.0,66797.0,0.002]
[1729880136696,0.00482022,66820.0,66819.0,0.299314]
[1729880136935,0.15050381,66824.0,66819.0,0.399314]
[1729880137170,0.15050381,66824.0,66820.0,0.1]
[1729880137171,0.00482022,66821.0,66820.0,0.1]
[1729880137390,0.00482022,66813.0,66812.0,0.149671]
[1729880137623,0.00482022,66813.0,66812.0,0.149673]
[1729880137861,0.00482022,66815.0,66814.0,0.149669]
[1729880138108,0.00482022,66820.0,66812.0,0.03268446]
[1729880138336,0.00482022,66820.0,66802.0,0.005]
[1729880138337,0.23161359,66823.0,66822.0,0.149651]
[1729880138589,0.22679337,66822.0,66821.0,0.149653]
[1729880138825,0.35516722,66821.0,66818.0,0.299318]
[1729880139045,0.350347,66821.0,66820.0,0.249655]
[1729880139291,0.350347,66821.0,66820.0,0.251655]
[1729880139993,0.350347,66821.0,66820.0,0.40715881]
[1729880140273,0.22679337,66837.0,66836.0,0.149619]
[1729880140489,0.22679337,66846.0,66845.0,0.249599]
[1729880140749,0.22679337,66846.0,66845.0,0.40710281]
[1729880140992,0.00482022,66860.0,66853.0,0.249581]
[1729880141466,0.00482022,66860.0,66859.0,0.149568]
[1729880141701,0.00482022,66860.0,66859.0,0.249568]
[1729880141914,0.00482022,66865.0,66864.0,0.149557]
[1729880143066,0.15532403,66865.0,66864.0,0.149557]
[1729880143289,0.00482022,66855.0,66854.0,0.149579]
[1729880143531,0.15532403,66855.0,66854.0,0.249579]
[1729880143751,0.15532403,66855.0,66852.0,0.52595737]
[1729880143752,0.00482022,66864.0,66863.0,0.149559]
[1729880143986,0.001,66865.0,66861.0,0.299123]
[1729880143987,0.001,66865.0,66864.0,0.149557]
[1729880144214,0.001,66865.0,66864.0,0.249557]
[1729880144655,0.005,66893.0,66867.0,0.14955]
[1729880144977,0.005,66893.0,66865.0,0.399105]
[1729880144978,0.01032453,66939.0,66865.0,0.399105]
[1729880144979,0.001694,66952.0,66917.0,0.005]
[1729880145233,0.001694,66952.0,66951.0,0.249362]
[1729880145471,0.0126483,66953.0,66952.0,0.1]
[1729880145748,0.04530136,66962.0,66944.0,0.005]
[1729880145984,0.001692,66979.0,66946.0,0.005]
[1729880146248,0.001692,66979.0,66964.0,0.005]
[1729880146473,0.001692,66979.0,66951.0,0.1]
[1729880146474,0.001692,66979.0,66975.0,0.259309]
[1729880146711,0.001692,66979.0,66964.0,0.149332]
[1729880146712,0.0033284,66976.0,66964.0,0.149332]
[1729880146990,0.0033284,66976.0,66963.0,0.149334]
[1729880147212,0.0033284,66976.0,66960.0,0.11]
[1729880147447,0.0033284,66976.0,66966.0,0.149327]
[1729880147693,0.0033284,66976.0,66962.0,0.298676]
[1729880147906,0.0033284,66976.0,66967.0,0.005]
[1729880148119,0.0043284,66976.0,66967.0,0.005]
[1729880148349,0.0043284,66976.0,66975.0,0.149309]
[1729880148350,0.0033284,66976.0,66975.0,0.149309]
[1729880148576,0.0033284,66976.0,66966.0,0.105]
[1729880148577,0.0033284,66976.0,66958.0,0.005]
[1729880148791,0.0043284,66976.0,66972.0,0.149314]
[1729880148998,0.0033284,66976.0,66970.0,0.005]
[1729880149442,0.0033284,66976.0,66950.0,0.005]
[1729880149443,0.0043284,66976.0,66954.0,0.005]
[1729880149702,0.0033284,66976.0,66975.0,0.149309]
[1729880149921,0.0033284,66976.0,66975.0,0.259309]
[1729880150158,0.0033284,66976.0,66975.0,0.269309]
[1729880150366,0.0033284,66976.0,66975.0,0.264309]
[1729880151345,0.0043284,66976.0,66975.0,0.264309]
[1729880151560,0.0043284,66976.0,66975.0,0.41481281]
[1729880151811,0.0043284,66976.0,66975.0,0.42681281]
[1729880151812,0.0033284,66976.0,66975.0,0.42681281]
[1729880152078,0.0043284,66976.0,66975.0,0.266309]
[1729880152317,0.0043284,66976.0,66975.0,0.6507753]
[1729880152562,0.0043284,66976.0,66975.0,0.266309]
[1729880152805,0.0043284,66976.0,66975.0,0.42181281]
[1729880153041,0.0043284,66976.0,66975.0,0.42681281]
[1729880153263,0.0177393,66984.0,66983.0,0.269291]
[1729880153465,0.0177393,66984.0,66983.0,0.42979481]
[1729880154544,0.22396249,67012.0,66983.0,0.42979481]
[1729880154545,0.22396249,67012.0,66999.0,0.264255]
[1729880154781,0.22596249,67004.0,66999.0,0.264255]
[1729880155005,0.002,67004.0,66999.0,0.264255]
[1729880155937,0.002,67004.0,66999.0,0.259255]
[1729880156161,0.18450381,67000.0,66992.0,0.005]
[1729880156399,0.18450381,67000.0,66999.0,0.149255]
[1729880156400,0.035,67000.0,66999.0,0.149255]
[1729880156635,0.034,67000.0,66999.0,0.164255]
[1729880157497,0.009,67000.0,66999.0,0.159255]
[1729880157712,0.009,67000.0,66993.0,0.597072]
[1729880157713,0.15950381,67000.0,66998.0,0.149257]
[1729880157926,0.15050381,66999.0,66998.0,0.149258]
[1729880158359,0.15050381,66999.0,66995.0,0.005]
[1729880158604,0.15050381,66999.0,66998.0,0.149258]
[1729880158817,0.15050381,66999.0,66998.0,0.249258]
[1729880159269,5.211e-05,67049.0,67030.0,0.8834]
[1729880159517,5.211e-05,67049.0,67042.0,0.15416]
[1729880159741,5.211e-05,67049.0,67042.0,0.26416]
[1729880160734,0.15219781,67043.0,67030.0,0.303372]
[1729880161009,0.15219781,67043.0,67023.0,0.298402]
[1729880161010,0.89554244,67039.0,67025.0,0.154196]
[1729880161211,0.16572359,67042.0,67025.0,0.005]
[1729880161212,0.15050381,67037.0,67025.0,0.005]
[1729880161414,0.89554244,67034.0,67025.0,0.1]
[1729880161640,0.15050381,67033.0,67025.0,0.1]
[1729880161883,0.023,67025.0,67013.0,0.005]
[1729880162101,0.023,67023.0,67015.0,0.005]
[1729880162571,0.023,67023.0,67021.0,0.005]
[1729880162572,0.15050381,67023.0,67021.0,0.005]
[1729880162573,0.023,67034.0,67029.0,0.298374]
[1729880162818,0.023,67034.0,67024.0,0.2984]
[1729880162819,0.15050381,67033.0,67024.0,0.2984]
[1729880163076,0.15050381,67033.0,67021.0,0.005]
[1729880163077,0.023,67024.0,67022.0,0.149203]
[1729880163335,0.023,67024.0,67018.0,0.149212]
[1729880163554,0.023,67022.0,67004.0,0.149244]
[1729880163769,0.89554244,67035.0,67004.0,0.149244]
[1729880163770,0.023,67020.0,67004.0,0.149244]
[1729880164004,0.09185424,67021.0,66996.0,0.005]
[1729880164005,0.15050381,67011.0,66996.0,0.005]
[1729880164225,0.023,66997.0,66986.0,0.005]
[1729880164490,0.023,66997.0,66977.0,0.89554244]
[1729880164491,0.075,67045.0,67020.0,0.149208]
[1729880164750,0.075,67045.0,67020.0,0.149209]
[1729880164751,0.2238689,67021.0,67020.0,0.149209]
[1729880165008,0.1962,67046.0,67020.0,0.149209]
[1729880165009,0.080967,67060.0,67032.0,0.005]
[1729880165229,0.2238689,67076.0,67042.0,0.16416]
[1729880165230,0.1812,67068.0,67042.0,0.16416]
[1729880165488,0.2238689,67076.0,67042.0,0.16416]
[1729880165711,0.2238689,67076.0,67042.0,0.41466381]
[1729880165968,0.2238689,67048.0,67042.0,0.26416]
[1729880166215,0.2238689,67048.0,67032.0,0.005]
[1729880166463,0.2238689,67048.0,67028.0,0.303381]
[1729880166464,0.15050381,67042.0,67038.0,0.005]
[1729880166704,0.15050381,67042.0,67031.0,0.298369]
[1729880166705,0.37437271,67041.0,67024.0,0.005]
[1729880166950,0.37437271,67033.0,67017.0,0.005]
[1729880167187,0.15050381,67018.0,67002.0,0.005]
[1729880167419,0.023,67014.0,66996.0,0.005]
[1729880167662,0.023,67014.0,66994.0,0.005]
[1729880167881,0.023,67010.0,66992.0,0.2238689]
[1729880168107,0.023,67010.0,66987.0,0.005]
[1729880168108,0.023,67001.0,66990.0,0.005]
[1729880168329,0.2238689,67027.0,67003.0,0.005]
[1729880168577,0.2238689,67004.0,66993.0,0.005]
[1729880168826,0.15050381,67005.0,66996.0,0.2238689]
[1729880169088,0.15050381,67005.0,66996.0,0.005]
[1729880169297,0.15050381,67005.0,66994.0,0.005]
[1729880169298,0.16555419,67005.0,66999.0,0.005]
[1729880169521,0.15050381,67005.0,66999.0,0.005]
[1729880169750,0.01341191,67019.0,67011.0,0.005]
[1729880169968,0.01341191,67019.0,67014.0,0.005]
[1729880170319,0.15274211,67015.0,67012.0,0.1]
[1729880170558,0.2238689,67013.0,67005.0,0.105]
[1729880170769,0.15050381,67012.0,66999.0,0.01]
[1729880171003,0.15050381,67012.0,66998.0,0.005]
[1729880171244,0.15050381,67012.0,67001.0,0.005]
[1729880171518,0.2238689,67011.0,67004.0,0.005]
[1729880171747,0.0022383,67015.0,67012.0,0.149225]
[1729880171968,0.0022383,67015.0,67010.0,0.005]
[1729880171969,0.15050381,67014.0,67013.0,0.149224]
[1729880172222,0.15274211,67015.0,67014.0,0.149222]
[1729880172431,0.15274211,67015.0,66999.0,0.01]
[1729880172432,0.023,67013.0,66999.0,0.01]
[1729880172655,0.023,67011.0,67001.0,0.14925]
[1729880172879,0.15050381,67010.0,66999.0,0.154255]
[1729880173107,0.15050381,67003.0,66990.0,0.005]
[1729880173328,0.05897567,67009.0,66989.0,0.2238689]
[1729880173329,0.023,67001.0,66989.0,0.2238689]
[1729880173548,0.023,67001.0,66985.0,0.01]
[1729880173549,0.01350834,67000.0,66988.0,0.005]
[1729880173781,0.023,66998.0,66988.0,0.005]
[1729880174059,0.2238689,66992.0,66983.0,0.005]
[1729880174300,0.18701215,66991.0,66980.0,0.149298]
[1729880174548,0.0349674,66990.0,66982.0,0.298587]
[1729880174782,0.18547121,66989.0,66981.0,0.005]
[1729880175012,0.03720699,66988.0,66980.0,0.005]
[1729880175253,0.18547121,66987.0,66979.0,0.005]
[1729880175527,0.00223959,66988.0,66987.0,0.154282]
[1729880175747,0.00223959,66988.0,66980.0,0.005]
[1729880175748,0.03777084,66988.0,66980.0,0.005]
[1729880175979,0.03777084,66988.0,66978.0,0.149301]
[1729880175980,0.03777084,66988.0,66982.0,0.005]
[1729880176208,0.03553125,66987.0,66982.0,0.005]
[1729880176451,0.03553125,66986.0,66982.0,0.005]
[1729880176729,0.03553125,66985.0,66984.0,0.005]
[1729880176981,0.03553125,66985.0,66984.0,0.164289]
[1729880177461,0.01366586,66985.0,66984.0,0.29625437]
[1729880177697,0.01366586,66985.0,66984.0,0.259289]
[1729880177946,0.01366586,66985.0,66984.0,0.105]
[1729880178198,0.01366586,66985.0,66984.0,0.264289]
[1729880178414,0.01366586,66985.0,66977.0,0.298608]
[1729880178415,0.01366586,66985.0,66981.0,0.005]
[1729880178648,0.01366586,66985.0,66977.0,0.303608]
[1729880178649,0.16416967,66984.0,66977.0,0.01]
[1729880178866,0.01366586,66983.0,66977.0,0.005]
[1729880179132,0.023,66977.0,66961.0,0.000844]
[1729880179409,0.23152737,66976.0,66968.0,0.005]
[1729880179633,0.0903577,66975.0,66965.0,0.149329]
[1729880179845,0.08102356,66974.0,66973.0,0.01]
[1729880180061,0.05915817,66974.0,66973.0,0.164313]
[1729880180307,0.01366586,66974.0,66973.0,0.164313]
[1729880180527,0.2238689,66985.0,66983.0,0.105]
[1729880180745,0.2238689,66985.0,66980.0,0.1]
[1729880180746,0.02186539,66990.0,66986.0,0.01]
[1729880180999,0.02186539,66990.0,66989.0,0.259278]
[1729880181234,0.17507724,66990.0,66981.0,0.005]
[1729880181471,0.17507724,66990.0,66966.0,0.0808]
[1729880181472,0.23161634,66989.0,66980.0,0.105]
[1729880181772,0.08111253,66988.0,66982.0,0.005]
[1729880182048,0.2238689,67008.0,66992.0,0.005]
[1729880182257,0.2238689,67001.0,66996.0,0.01]
[1729880182485,0.08114093,67000.0,66995.0,0.005]
[1729880182706,0.08114093,66999.0,66993.0,0.1]
[1729880182922,0.15050381,67007.0,66993.0,0.1]
[1729880182923,0.08114093,66998.0,66994.0,0.005]
[1729880183204,0.08114093,66997.0,66983.0,0.005]
[1729880183444,0.06857684,66996.0,66982.0,0.01]
[1729880183655,0.00811409,66998.0,66982.0,0.01]
[1729880183656,0.023,66994.0,66984.0,0.00664]
[1729880183887,0.00082,66988.0,66984.0,0.00664]
[1729880184104,0.1860679,66987.0,66984.0,0.00664]
[1729880184319,0.2238689,66985.0,66984.0,0.00164]
[1729880184533,0.023,66984.0,66979.0,0.005]
[1729880184747,0.03556409,66985.0,66984.0,0.005]
[1729880184995,0.03555452,66985.0,66980.0,0.005]
[1729880185232,0.19610985,66984.0,66977.0,0.015]
[1729880185442,0.19610985,66984.0,66980.0,0.005]
[1729880185443,0.08116056,66983.0,66980.0,0.005]
[1729880185705,0.00082,66988.0,66980.0,0.005]
[1729880185706,0.23166437,66982.0,66980.0,0.005]
[1729880185940,0.08116056,66981.0,66980.0,0.005]
[1729880186192,0.08116056,66981.0,66958.0,0.005]
[1729880186193,0.023,66980.0,66956.0,0.005]
[1729880186412,0.15050381,66974.0,66965.0,0.2238689]
[1729880186681,0.08116056,66979.0,66953.0,0.001642]
[1729880186682,0.2238689,66966.0,66953.0,0.001642]
[1729880186932,0.10916056,66965.0,66953.0,0.001642]
[1729880187157,0.15050381,66954.0,66953.0,0.001642]
[1729880187414,0.15050381,66954.0,66927.0,0.2238689]
[1729880187415,0.028,66953.0,66928.0,0.005]
[1729880187662,0.03330151,66964.0,66927.0,0.2238689]
[1729880187663,0.023,66944.0,66927.0,0.2238689]
[1729880187867,0.023,66944.0,66920.0,0.2288689]
[1729880187868,0.023,66940.0,66920.0,0.2288689]